[Event "*** Titled Tuesday Blitz"]
[Site "Chess.com"]
[Date "2018.07.03"]
[Round "2"]
[White "EndgameGrinder"]
[Black "TST2014"]
[Result "1-0"]
[WhiteElo "2458"]
[BlackElo "2378"]
[TimeControl "180+2"]
[EndTime "13:24:57 PDT"]
[Termination "EndgameGrinder won by resignation"]

1. e4 {[%clk 0:03:01.9]} 1... c5 {[%clk 0:03:00.3]} 2. Nf3 {[%clk 0:03:03]} 2...
Nc6 {[%clk 0:03:01.3]} 3. d4 {[%clk 0:03:04.7]} 3... cxd4 {[%clk 0:03:00.3]} 4.
Nxd4 {[%clk 0:03:06.6]} 4... Nf6 {[%clk 0:02:59.3]} 5. Nc3 {[%clk 0:03:07.8]}
5... d6 {[%clk 0:02:59.7]} 6. Bg5 {[%clk 0:03:07.7]} 6... e6 {[%clk 0:03:00.1]}
7. Qd2 {[%clk 0:03:07.6]} 7... a6 {[%clk 0:02:58.4]} 8. O-O-O {[%clk 0:03:04.5]}
8... Bd7 {[%clk 0:02:59.4]} 9. f4 {[%clk 0:03:05]} 9... h6 {[%clk 0:02:58.7]}
10. Bh4 {[%clk 0:03:05.6]} 10... g5 {[%clk 0:03:00.1]} 11. fxg5 {[%clk
0:03:03.9]} 11... Ng4 {[%clk 0:03:01.5]} 12. Nf3 {[%clk 0:02:55.8]} 12... Be7
{[%clk 0:03:01.4]} 13. Kb1 {[%clk 0:02:53.7]} 13... Nge5 {[%clk 0:02:43.9]} 14.
Bf2 {[%clk 0:02:22.4]} 14... hxg5 {[%clk 0:02:42.6]} 15. Nxe5 {[%clk 0:02:19.3]}
15... Nxe5 {[%clk 0:02:42.4]} 16. Be2 {[%clk 0:02:19.1]} 16... b5 {[%clk
0:02:40.9]} 17. a3 {[%clk 0:02:19.4]} 17... Rb8 {[%clk 0:02:37.5]} 18. Na2
{[%clk 0:02:08.9]} 18... a5 {[%clk 0:02:37.3]} 19. Nc1 {[%clk 0:02:08.3]} 19...
b4 {[%clk 0:02:38]} 20. axb4 {[%clk 0:02:06.2]} 20... axb4 {[%clk 0:02:36.4]}
21. Nb3 {[%clk 0:02:05.9]} 21... Qc7 {[%clk 0:02:33.3]} 22. h4 {[%clk
0:01:46.7]} 22... gxh4 {[%clk 0:02:33.2]} 23. Rh3 {[%clk 0:01:45.9]} 23... Bc6
{[%clk 0:02:29.4]} 24. Qd4 {[%clk 0:01:34]} 24... Ba4 {[%clk 0:02:10.3]} 25.
Rdh1 {[%clk 0:01:28.5]} 25... Bb5 {[%clk 0:01:51.1]} 26. Bxb5+ {[%clk
0:01:17.3]} 26... Rxb5 {[%clk 0:01:52.2]} 27. Bxh4 {[%clk 0:01:16.4]} 27... Qb6
{[%clk 0:01:35.6]} 28. Bxe7 {[%clk 0:01:03.3]} 28... Rxh3 {[%clk 0:01:36]} 29.
gxh3 {[%clk 0:00:58.3]} 29... Kxe7 {[%clk 0:01:36.2]} 30. Qd2 {[%clk 0:00:52.3]}
30... Qb7 {[%clk 0:01:31.3]} 31. Qe2 {[%clk 0:00:44.9]} 31... Rb6 {[%clk
0:01:30.6]} 32. h4 {[%clk 0:00:44.2]} 32... Rc6 {[%clk 0:01:30.6]} 33. h5 {[%clk
0:00:44]} 33... Rc4 {[%clk 0:01:32.1]} 34. Nd2 {[%clk 0:00:38]} 34... Rc8 {[%clk
0:01:27]} 35. h6 {[%clk 0:00:38.7]} 35... Qc6 {[%clk 0:01:18.7]} 36. Nb3 {[%clk
0:00:37.3]} 36... Rh8 {[%clk 0:01:16.2]} 37. h7 {[%clk 0:00:37.5]} 37... Qc4
{[%clk 0:01:11]} 38. Qg2 {[%clk 0:00:26.9]} 38... Qc8 {[%clk 0:01:08.1]} 39.
Qg5+ {[%clk 0:00:26.7]} 39... Kd7 {[%clk 0:01:08.6]} 40. Qf6 {[%clk 0:00:26.4]}
40... Qd8 {[%clk 0:01:06.3]} 41. Qg7 {[%clk 0:00:25]} 41... Qf8 {[%clk 0:01:07]}
42. Qxf8 {[%clk 0:00:25.7]} 42... Rxf8 {[%clk 0:01:06.1]} 43. h8=Q {[%clk
0:00:27.6]} 43... Rxh8 {[%clk 0:01:07.3]} 44. Rxh8 {[%clk 0:00:29.1]} 44... Ke7
{[%clk 0:01:06]} 45. Nd4 {[%clk 0:00:24.7]} 45... Kf6 {[%clk 0:01:06.4]} 46. Rb8
{[%clk 0:00:24.8]} 46... Kg5 {[%clk 0:01:07.5]} 47. Rxb4 {[%clk 0:00:25.6]}
47... Kf4 {[%clk 0:01:09]} 48. Nb5 {[%clk 0:00:26.4]} 48... Nf3 {[%clk
0:00:56.8]} 49. Nxd6 {[%clk 0:00:24.8]} 49... f6 {[%clk 0:00:56.8]} 50. Kc1
{[%clk 0:00:22.9]} 50... Ke3 {[%clk 0:00:57.5]} 51. Ne8 {[%clk 0:00:19.7]} 51...
f5 {[%clk 0:00:58.1]} 52. exf5 {[%clk 0:00:20.4]} 52... exf5 {[%clk 0:00:59.5]}
53. Ng7 {[%clk 0:00:21.5]} 53... f4 {[%clk 0:01:00.6]} 54. Ne6 {[%clk
0:00:22.3]} 54... Ng1 {[%clk 0:00:59.8]} 55. Nxf4 {[%clk 0:00:22.4]} 55... Kf3
{[%clk 0:01:00.2]} 56. Nd3 {[%clk 0:00:21.4]} 56... Ke3 {[%clk 0:01:00.7]} 57.
Rb8 {[%clk 0:00:21.1]} 57... Ne2+ {[%clk 0:01:01.9]} 58. Kb1 {[%clk 0:00:22.5]}
58... Nd4 {[%clk 0:01:03.3]} 59. b4 {[%clk 0:00:23.6]} 59... Ne2 {[%clk
0:01:03.4]} 60. b5 {[%clk 0:00:24.2]} 60... Nc3+ {[%clk 0:01:03.9]} 61. Ka1
{[%clk 0:00:25.6]} 61... Na4 {[%clk 0:01:05.5]} 62. b6 {[%clk 0:00:26.2]} 62...
Nxb6 {[%clk 0:01:06.7]} 63. Rxb6 {[%clk 0:00:27.1]} 63... Kd4 {[%clk 0:01:08.4]}
64. Kb2 {[%clk 0:00:27.7]} 64... Kc4 {[%clk 0:01:09.5]} 65. Rb4+ {[%clk
0:00:28]} 65... Kd5 {[%clk 0:01:10.5]} 66. Kc3 {[%clk 0:00:29.7]} 1-0

[Event "*** Titled Tuesday Blitz"]
[Site "Chess.com"]
[Date "2018.07.03"]
[Round "2"]
[White "Storne89"]
[Black "abhijeetgupta1016"]
[Result "0-1"]
[WhiteElo "2598"]
[BlackElo "2812"]
[TimeControl "180+2"]
[EndTime "13:25:02 PDT"]
[Termination "abhijeetgupta1016 won on time"]

1. e4 {[%clk 0:03:01.9]} 1... c5 {[%clk 0:03:00.2]} 2. Nf3 {[%clk 0:03:02.8]}
2... d6 {[%clk 0:03:01.2]} 3. d4 {[%clk 0:03:03.9]} 3... cxd4 {[%clk 0:03:03.1]}
4. Nxd4 {[%clk 0:03:05.8]} 4... Nf6 {[%clk 0:03:02.7]} 5. Nc3 {[%clk 0:03:06.8]}
5... Nc6 {[%clk 0:03:03.8]} 6. Bg5 {[%clk 0:03:06.9]} 6... e6 {[%clk 0:03:05.1]}
7. Qd2 {[%clk 0:03:07.7]} 7... a6 {[%clk 0:03:06.4]} 8. O-O-O {[%clk 0:03:08.5]}
8... Bd7 {[%clk 0:03:08]} 9. f3 {[%clk 0:03:09.1]} 9... Be7 {[%clk 0:03:07.6]}
10. h4 {[%clk 0:03:09.9]} 10... O-O {[%clk 0:03:06.2]} 11. Kb1 {[%clk
0:03:09.1]} 11... Nxd4 {[%clk 0:02:59.9]} 12. Qxd4 {[%clk 0:03:09.6]} 12... Bc6
{[%clk 0:03:00]} 13. g4 {[%clk 0:03:00.7]} 13... b5 {[%clk 0:02:59.6]} 14. Qd2
{[%clk 0:03:01.1]} 14... Rc8 {[%clk 0:02:57.4]} 15. Bd3 {[%clk 0:03:02]} 15...
b4 {[%clk 0:02:46.4]} 16. Ne2 {[%clk 0:03:02.2]} 16... d5 {[%clk 0:02:47.2]} 17.
e5 {[%clk 0:02:58.2]} 17... Ne4 {[%clk 0:02:47.5]} 18. fxe4 {[%clk 0:02:51.5]}
18... dxe4 {[%clk 0:02:48.3]} 19. Bxa6 {[%clk 0:02:52.5]} 19... Bxg5 {[%clk
0:02:36.5]} 20. Qxg5 {[%clk 0:02:38.7]} 20... Qxg5 {[%clk 0:02:36.9]} 21. hxg5
{[%clk 0:02:38.3]} 21... Ra8 {[%clk 0:02:37.7]} 22. Bc4 {[%clk 0:02:37.4]} 22...
Ra5 {[%clk 0:02:39.3]} 23. Rd6 {[%clk 0:01:32.8]} 23... Ba8 {[%clk 0:02:36.6]}
24. Rhd1 {[%clk 0:01:31.3]} 24... Rxe5 {[%clk 0:02:28.9]} 25. Rd8 {[%clk
0:01:32.2]} 25... Bd5 {[%clk 0:02:28.4]} 26. Rxf8+ {[%clk 0:01:27.4]} 26... Kxf8
{[%clk 0:02:30.3]} 27. Bxd5 {[%clk 0:01:27.1]} 27... exd5 {[%clk 0:02:32.2]} 28.
a4 {[%clk 0:01:28.6]} 28... bxa3 {[%clk 0:02:32.4]} 29. bxa3 {[%clk 0:01:30.5]}
29... Rxg5 {[%clk 0:02:33.8]} 30. a4 {[%clk 0:01:32]} 30... Rxg4 {[%clk
0:02:06.6]} 31. Rxd5 {[%clk 0:01:29]} 31... e3 {[%clk 0:02:07.4]} 32. a5 {[%clk
0:01:23.5]} 32... Rg2 {[%clk 0:01:57.1]} 33. Nc3 {[%clk 0:01:23.8]} 33... e2
{[%clk 0:01:53.9]} 34. Nxe2 {[%clk 0:00:36.8]} 34... Rxe2 {[%clk 0:01:55.8]} 35.
a6 {[%clk 0:00:38.6]} 35... Re8 {[%clk 0:01:44.5]} 36. a7 {[%clk 0:00:38.7]}
36... Ra8 {[%clk 0:01:45.5]} 37. Rd7 {[%clk 0:00:39.1]} 37... g5 {[%clk
0:01:43.1]} 38. Kc1 {[%clk 0:00:39.6]} 38... h5 {[%clk 0:01:41.6]} 39. Kd1
{[%clk 0:00:40.9]} 39... h4 {[%clk 0:01:43.2]} 40. Ke1 {[%clk 0:00:42.2]} 40...
h3 {[%clk 0:01:44.6]} 41. Kf1 {[%clk 0:00:43.4]} 41... g4 {[%clk 0:01:45.6]} 42.
Kf2 {[%clk 0:00:44.8]} 42... Kg7 {[%clk 0:01:46.7]} 43. Kg3 {[%clk 0:00:45.4]}
43... Kg6 {[%clk 0:01:44.5]} 44. c4 {[%clk 0:00:28.9]} 44... f5 {[%clk 0:01:45]}
45. c5 {[%clk 0:00:30.4]} 45... Kg5 {[%clk 0:01:37.3]} 46. c6 {[%clk 0:00:27.1]}
46... f4+ {[%clk 0:01:38]} 47. Kh2 {[%clk 0:00:28.5]} 47... Rh8 {[%clk
0:01:37.1]} 48. Rd5+ {[%clk 0:00:21.1]} 48... Kh4 {[%clk 0:01:37.6]} 49. Ra5
{[%clk 0:00:18.5]} 49... g3+ {[%clk 0:01:38.4]} 50. Kh1 {[%clk 0:00:15.1]} 50...
Rg8 {[%clk 0:01:08.7]} 51. Ra1 {[%clk 0:00:12.2]} 51... f3 {[%clk 0:00:52.7]}
52. a8=Q {[%clk 0:00:09.2]} 52... Rxa8 {[%clk 0:00:52.9]} 53. Rxa8 {[%clk
0:00:11.1]} 53... f2 {[%clk 0:00:53.7]} 54. Rh8+ {[%clk 0:00:08.2]} 54... Kg4
{[%clk 0:00:54.6]} 55. Rg8+ {[%clk 0:00:09.4]} 55... Kf3 {[%clk 0:00:44.5]} 56.
Rf8+ {[%clk 0:00:10.2]} 56... Ke2 {[%clk 0:00:45.6]} 57. Re8+ {[%clk 0:00:11]}
57... Kd2 {[%clk 0:00:45.8]} 58. Rd8+ {[%clk 0:00:02.2]} 58... Ke2 {[%clk
0:00:46.4]} 59. Re8+ {[%clk 0:00:02.8]} 59... Kf1 {[%clk 0:00:46.5]} 0-1

[Event "*** Titled Tuesday Blitz"]
[Site "Chess.com"]
[Date "2018.07.03"]
[Round "2"]
[White "INDIAN-ELEPHANT"]
[Black "Bigfish1995"]
[Result "1-0"]
[WhiteElo "2608"]
[BlackElo "2884"]
[TimeControl "180+2"]
[EndTime "13:25:36 PDT"]
[Termination "INDIAN-ELEPHANT won by resignation"]

1. d4 {[%clk 0:03:01.9]} 1... Nf6 {[%clk 0:02:58.3]} 2. Nf3 {[%clk 0:03:02.6]}
2... e6 {[%clk 0:02:59.1]} 3. g3 {[%clk 0:03:03.4]} 3... d5 {[%clk 0:02:59.2]}
4. c4 {[%clk 0:03:03.5]} 4... Bb4+ {[%clk 0:02:59.6]} 5. Bd2 {[%clk 0:03:04.1]}
5... Be7 {[%clk 0:03:00.3]} 6. Bg2 {[%clk 0:03:05]} 6... O-O {[%clk 0:03:01.8]}
7. O-O {[%clk 0:03:05.6]} 7... Nbd7 {[%clk 0:03:02.8]} 8. Qb3 {[%clk 0:03:05.8]}
8... c6 {[%clk 0:03:00.4]} 9. Bb4 {[%clk 0:03:06.3]} 9... a5 {[%clk 0:02:56.5]}
10. Bxe7 {[%clk 0:03:06.9]} 10... Qe8 {[%clk 0:02:57.7]} 11. Bxf8 {[%clk
0:03:07.3]} 11... Qxf8 {[%clk 0:02:43.4]} 12. Qa3 {[%clk 0:03:03.7]} 12... Qd8
{[%clk 0:02:42.1]} 13. Nbd2 {[%clk 0:03:03.2]} 13... Nf8 {[%clk 0:02:36.6]} 14.
Ne5 {[%clk 0:03:02.1]} 14... Ne8 {[%clk 0:02:33.6]} 15. cxd5 {[%clk 0:02:57.8]}
15... exd5 {[%clk 0:02:34]} 16. e4 {[%clk 0:02:58.6]} 16... dxe4 {[%clk
0:02:32]} 17. Nxe4 {[%clk 0:02:58.6]} 17... Qxd4 {[%clk 0:02:30.7]} 18. Qc5
{[%clk 0:02:56.8]} 18... Qd8 {[%clk 0:02:27.4]} 19. Rad1 {[%clk 0:02:53.4]}
19... Qc7 {[%clk 0:02:28.2]} 20. Nd6 {[%clk 0:02:49.5]} 20... Be6 {[%clk
0:02:28.9]} 21. Nxe8 {[%clk 0:02:44.5]} 21... Rxe8 {[%clk 0:02:29.1]} 22. a3
{[%clk 0:02:40.6]} 22... Bb3 {[%clk 0:02:26.3]} 23. Rde1 {[%clk 0:02:41.4]}
23... Ne6 {[%clk 0:02:22.3]} 24. Qc3 {[%clk 0:02:40.8]} 24... a4 {[%clk
0:02:22.7]} 25. Nd3 {[%clk 0:02:36.6]} 25... Rd8 {[%clk 0:02:10.6]} 26. Nc5
{[%clk 0:02:34.1]} 26... Nxc5 {[%clk 0:02:03.4]} 27. Qxc5 {[%clk 0:02:34.4]}
27... h6 {[%clk 0:01:55.2]} 28. Re7 {[%clk 0:02:33.1]} 28... Qc8 {[%clk
0:01:47.1]} 29. Rfe1 {[%clk 0:02:32.6]} 29... Kh7 {[%clk 0:01:42.7]} 30. Be4+
{[%clk 0:02:28.4]} 30... g6 {[%clk 0:01:43.6]} 31. Qe5 {[%clk 0:02:18.8]} 31...
Rd2 {[%clk 0:01:16.8]} 32. Qf6 {[%clk 0:02:08.3]} 32... Qg8 {[%clk 0:01:16.9]}
33. h4 {[%clk 0:02:04.4]} 33... Qg7 {[%clk 0:01:11.2]} 34. Qxg7+ {[%clk
0:02:02.6]} 34... Kxg7 {[%clk 0:01:13.1]} 35. Rxb7 {[%clk 0:02:00.5]} 35... Rxb2
{[%clk 0:01:13.9]} 36. Bxc6 {[%clk 0:02:01.5]} 36... Ra2 {[%clk 0:01:14.9]} 37.
Ree7 {[%clk 0:01:54.4]} 37... Rxa3 {[%clk 0:01:12.2]} 38. Kg2 {[%clk 0:01:55.1]}
38... Ra1 {[%clk 0:01:11.8]} 39. Ra7 {[%clk 0:01:55]} 39... Kf6 {[%clk 0:01:06]}
40. Reb7 {[%clk 0:01:54]} 40... Rc1 {[%clk 0:00:58.9]} 41. Rb6 {[%clk
0:01:47.2]} 41... Ke5 {[%clk 0:00:51.9]} 42. f4+ {[%clk 0:01:42.7]} 42... Kd4
{[%clk 0:00:49.4]} 43. Bxa4 {[%clk 0:01:41.8]} 43... Bd5+ {[%clk 0:00:49.5]} 44.
Kf2 {[%clk 0:01:42.5]} 44... Ra1 {[%clk 0:00:47.1]} 45. Rb2 {[%clk 0:01:35.9]}
45... Kc3 {[%clk 0:00:44.6]} 46. Rc2+ {[%clk 0:01:29.7]} 46... Kb4 {[%clk
0:00:44.9]} 47. Rd2 {[%clk 0:01:29.2]} 47... Be6 {[%clk 0:00:38.1]} 48. Rd4+
{[%clk 0:01:19.4]} 48... Kc5 {[%clk 0:00:32.1]} 49. Re4 {[%clk 0:01:15.6]} 49...
Ra2+ {[%clk 0:00:30.3]} 50. Re2 {[%clk 0:01:15.5]} 50... Ra3 {[%clk 0:00:28.4]}
51. Re5+ {[%clk 0:01:08.9]} 51... Kd4 {[%clk 0:00:25.3]} 52. Re4+ {[%clk
0:00:52.7]} 52... Kc5 {[%clk 0:00:18]} 53. Rc7+ {[%clk 0:00:51.4]} 53... Kd6
{[%clk 0:00:19]} 54. Rc6+ {[%clk 0:00:50.3]} 54... Kd5 {[%clk 0:00:20.1]} 55.
Re5+ {[%clk 0:00:50.8]} 55... Kd4 {[%clk 0:00:21.3]} 56. Bb5 {[%clk 0:00:51.3]}
56... Ra2+ {[%clk 0:00:20.5]} 57. Re2 {[%clk 0:00:51.1]} 57... Ra3 {[%clk
0:00:21.5]} 58. Rcxe6 {[%clk 0:00:50.4]} 58... fxe6 {[%clk 0:00:22.1]} 59. Rxe6
{[%clk 0:00:51.9]} 59... Ra2+ {[%clk 0:00:21.7]} 60. Be2 {[%clk 0:00:52.4]}
60... g5 {[%clk 0:00:20.2]} 61. fxg5 {[%clk 0:00:53.4]} 61... hxg5 {[%clk
0:00:21.4]} 62. hxg5 {[%clk 0:00:54.4]} 62... Ra5 {[%clk 0:00:22.9]} 63. g6
{[%clk 0:00:54.8]} 63... Rg5 {[%clk 0:00:23.7]} 64. g4 {[%clk 0:00:54]} 64...
Kd5 {[%clk 0:00:24.1]} 65. Rf6 {[%clk 0:00:53.4]} 65... Ke4 {[%clk 0:00:23.8]}
66. Bf3+ {[%clk 0:00:51.5]} 66... Kd4 {[%clk 0:00:24.9]} 67. Kg3 {[%clk
0:00:50]} 67... Ra5 {[%clk 0:00:23.8]} 68. Kf4 {[%clk 0:00:50.5]} 1-0

[Event "*** Titled Tuesday Blitz"]
[Site "Chess.com"]
[Date "2018.07.03"]
[Round "2"]
[White "GMKrikor"]
[Black "simplerXiao"]
[Result "1-0"]
[WhiteElo "2618"]
[BlackElo "2357"]
[TimeControl "180+2"]
[EndTime "13:25:54 PDT"]
[Termination "GMKrikor won by resignation"]

1. e4 {[%clk 0:03:01.9]} 1... c5 {[%clk 0:02:58.8]} 2. Nf3 {[%clk 0:02:58.4]}
2... e6 {[%clk 0:02:58.3]} 3. d4 {[%clk 0:02:57.7]} 3... cxd4 {[%clk 0:03:00.2]}
4. Nxd4 {[%clk 0:02:59.4]} 4... Nc6 {[%clk 0:03:00.6]} 5. Nc3 {[%clk 0:02:59.7]}
5... Qc7 {[%clk 0:02:59.5]} 6. Be3 {[%clk 0:02:45.5]} 6... a6 {[%clk 0:02:59.1]}
7. g4 {[%clk 0:02:42.9]} 7... Bb4 {[%clk 0:02:56.3]} 8. Nxc6 {[%clk 0:02:39.6]}
8... bxc6 {[%clk 0:02:51.5]} 9. Qd4 {[%clk 0:02:40.9]} 9... Bd6 {[%clk
0:02:33.6]} 10. Qxg7 {[%clk 0:02:05.6]} 10... Be5 {[%clk 0:02:32.6]} 11. Qg5
{[%clk 0:02:06.9]} 11... h6 {[%clk 0:02:24.1]} 12. Qh4 {[%clk 0:01:59.4]} 12...
Rb8 {[%clk 0:02:23.5]} 13. Nd1 {[%clk 0:01:49.8]} 13... Ne7 {[%clk 0:01:30.3]}
14. Bd3 {[%clk 0:01:36.2]} 14... Ng6 {[%clk 0:01:28.8]} 15. Qh5 {[%clk
0:01:37.6]} 15... c5 {[%clk 0:01:22.7]} 16. O-O {[%clk 0:01:22.6]} 16... c4
{[%clk 0:01:19.2]} 17. Be2 {[%clk 0:01:22]} 17... Bf4 {[%clk 0:01:11.9]} 18. Qh3
{[%clk 0:01:17.4]} 18... Bb7 {[%clk 0:01:08.8]} 19. Nc3 {[%clk 0:01:08.7]} 19...
Rg8 {[%clk 0:00:58.3]} 20. Rad1 {[%clk 0:01:06.5]} 20... Qe5 {[%clk 0:00:57]}
21. Qf3 {[%clk 0:01:05.7]} 21... Bxh2+ {[%clk 0:00:55.8]} 22. Kh1 {[%clk
0:01:05.4]} 22... Bf4 {[%clk 0:00:40.2]} 23. Bd4 {[%clk 0:01:06.4]} 23... Qg5
{[%clk 0:00:38.9]} 24. Qh3 {[%clk 0:01:07.6]} 24... Rc8 {[%clk 0:00:34.6]} 25.
Qh5 {[%clk 0:00:57.9]} 25... Ne5 {[%clk 0:00:29.1]} 26. Qxg5 {[%clk 0:00:48.7]}
26... hxg5 {[%clk 0:00:29.4]} 27. f3 {[%clk 0:00:49.8]} 27... Ke7 {[%clk
0:00:28.2]} 28. Kg2 {[%clk 0:00:51]} 28... Rh8 {[%clk 0:00:28.5]} 29. Rh1 {[%clk
0:00:51.6]} 29... Rxh1 {[%clk 0:00:28.6]} 30. Rxh1 {[%clk 0:00:52.2]} 30... Ng6
{[%clk 0:00:30.1]} 31. Bf2 {[%clk 0:00:49]} 31... a5 {[%clk 0:00:28.2]} 32. Bf1
{[%clk 0:00:34.3]} 32... Be5 {[%clk 0:00:28.9]} 33. Bg3 {[%clk 0:00:31.8]} 33...
Nf4+ {[%clk 0:00:28.2]} 34. Bxf4 {[%clk 0:00:33.1]} 34... Bxf4 {[%clk
0:00:29.8]} 35. Be2 {[%clk 0:00:33]} 35... Be5 {[%clk 0:00:30.5]} 36. Nd1 {[%clk
0:00:31.7]} 36... a4 {[%clk 0:00:30.6]} 37. c3 {[%clk 0:00:30.7]} 37... Bf4
{[%clk 0:00:29.7]} 38. Kf2 {[%clk 0:00:24.3]} 38... Ba6 {[%clk 0:00:30.6]} 39.
Ne3 {[%clk 0:00:24]} 39... Bxe3+ {[%clk 0:00:30.4]} 40. Kxe3 {[%clk 0:00:25]}
40... Rb8 {[%clk 0:00:31.7]} 41. Rb1 {[%clk 0:00:21.6]} 41... a3 {[%clk
0:00:32.5]} 42. b3 {[%clk 0:00:20.1]} 42... d5 {[%clk 0:00:31.6]} 43. b4 {[%clk
0:00:19.7]} 43... Kd6 {[%clk 0:00:30.6]} 44. Rd1 {[%clk 0:00:19.3]} 44... Bb5
{[%clk 0:00:31.3]} 45. f4 {[%clk 0:00:18.3]} 45... gxf4+ {[%clk 0:00:28.5]} 46.
Kxf4 {[%clk 0:00:20.2]} 46... Rh8 {[%clk 0:00:28.3]} 47. exd5 {[%clk 0:00:09.7]}
47... exd5 {[%clk 0:00:29]} 48. Bf3 {[%clk 0:00:11.3]} 48... Bc6 {[%clk
0:00:30.1]} 49. Kg3 {[%clk 0:00:11.9]} 49... Re8 {[%clk 0:00:29.9]} 50. Kf2
{[%clk 0:00:12.9]} 50... Re5 {[%clk 0:00:29.4]} 51. Rh1 {[%clk 0:00:11]} 51...
Re6 {[%clk 0:00:25.3]} 52. Rh8 {[%clk 0:00:11]} 52... Rf6 {[%clk 0:00:25.2]} 53.
Kg3 {[%clk 0:00:12.4]} 53... Rxf3+ {[%clk 0:00:23.9]} 54. Kxf3 {[%clk 0:00:13]}
54... d4+ {[%clk 0:00:25.3]} 55. Ke2 {[%clk 0:00:14.4]} 55... dxc3 {[%clk
0:00:25.5]} 56. Kd1 {[%clk 0:00:11.6]} 56... Be4 {[%clk 0:00:25.6]} 57. Rh3
{[%clk 0:00:10.2]} 57... Bd3 {[%clk 0:00:22.3]} 58. Kc1 {[%clk 0:00:08.3]} 58...
Kc6 {[%clk 0:00:19.3]} 59. Rh5 {[%clk 0:00:09.4]} 59... Be2 {[%clk 0:00:19.4]}
60. Rc5+ {[%clk 0:00:10.5]} 60... Kb6 {[%clk 0:00:19.8]} 61. g5 {[%clk
0:00:12.4]} 61... Bd3 {[%clk 0:00:20.1]} 62. Ra5 {[%clk 0:00:11.9]} 62... Kc6
{[%clk 0:00:20.9]} 63. Rxa3 {[%clk 0:00:12.8]} 63... Kb5 {[%clk 0:00:22.3]} 64.
Rxc3 {[%clk 0:00:13.5]} 64... Kxb4 {[%clk 0:00:23]} 65. Kd2 {[%clk 0:00:13.3]}
65... Bb1 {[%clk 0:00:23.7]} 66. a3+ {[%clk 0:00:13.6]} 66... Kc5 {[%clk
0:00:25]} 67. Rf3 {[%clk 0:00:14.5]} 67... Bg6 {[%clk 0:00:26.2]} 68. Kc3 {[%clk
0:00:15]} 68... Kd5 {[%clk 0:00:27.1]} 69. a4 {[%clk 0:00:14.5]} 69... Kc5
{[%clk 0:00:28.2]} 70. Rf6 {[%clk 0:00:14.6]} 70... Kd5 {[%clk 0:00:28.8]} 71.
a5 {[%clk 0:00:15.1]} 71... Kc5 {[%clk 0:00:30.1]} 72. a6 {[%clk 0:00:16.7]}
72... Kb5 {[%clk 0:00:30.5]} 73. Rxg6 {[%clk 0:00:16.9]} 73... fxg6 {[%clk
0:00:30.7]} 74. a7 {[%clk 0:00:17.6]} 1-0

[Event "*** Titled Tuesday Blitz"]
[Site "Chess.com"]
[Date "2018.07.03"]
[Round "2"]
[White "Spring199"]
[Black "andrzej"]
[Result "0-1"]
[WhiteElo "2172"]
[BlackElo "2204"]
[TimeControl "180+2"]
[EndTime "13:26:09 PDT"]
[Termination "andrzej won by checkmate"]

1. e4 {[%clk 0:03:01.9]} 1... c5 {[%clk 0:03:00.3]} 2. Nf3 {[%clk 0:03:03.2]}
2... e6 {[%clk 0:03:01.8]} 3. d4 {[%clk 0:03:03.6]} 3... cxd4 {[%clk 0:03:03.7]}
4. Nxd4 {[%clk 0:03:05]} 4... d6 {[%clk 0:03:05.1]} 5. g3 {[%clk 0:03:05.6]}
5... a6 {[%clk 0:03:01.6]} 6. Bg2 {[%clk 0:03:06]} 6... b5 {[%clk 0:03:00.3]} 7.
O-O {[%clk 0:03:04.4]} 7... Bb7 {[%clk 0:03:00.9]} 8. Nc3 {[%clk 0:03:03.5]}
8... Nf6 {[%clk 0:02:59]} 9. a3 {[%clk 0:03:00.1]} 9... Nfd7 {[%clk 0:02:46.8]}
10. f4 {[%clk 0:02:58.8]} 10... Be7 {[%clk 0:02:41.5]} 11. Be3 {[%clk
0:02:49.7]} 11... Nb6 {[%clk 0:02:42.1]} 12. Qh5 {[%clk 0:02:40]} 12... g6
{[%clk 0:02:07.2]} 13. Qe2 {[%clk 0:02:19.3]} 13... Nc4 {[%clk 0:02:03]} 14. Bc1
{[%clk 0:02:10.2]} 14... Qb6 {[%clk 0:01:56.4]} 15. Qf2 {[%clk 0:02:10.2]} 15...
Nd7 {[%clk 0:01:43.8]} 16. b3 {[%clk 0:02:01.3]} 16... Na5 {[%clk 0:01:03.5]}
17. Be3 {[%clk 0:01:46.9]} 17... Qc7 {[%clk 0:01:00.7]} 18. Na2 {[%clk
0:01:23.7]} 18... O-O {[%clk 0:00:54]} 19. f5 {[%clk 0:01:19.9]} 19... e5 {[%clk
0:00:35.6]} 20. Ne2 {[%clk 0:01:07.2]} 20... Qxc2 {[%clk 0:00:33.5]} 21. Rfc1
{[%clk 0:01:05.2]} 21... Qxb3 {[%clk 0:00:34.3]} 22. Rc7 {[%clk 0:00:49.7]}
22... Qb2 {[%clk 0:00:20.7]} 23. Qe1 {[%clk 0:00:43.1]} 23... Rfd8 {[%clk
0:00:16.7]} 24. Bd2 {[%clk 0:00:39.5]} 24... Nc4 {[%clk 0:00:16.6]} 25. Bc3
{[%clk 0:00:37.6]} 25... Qc2 {[%clk 0:00:15.1]} 26. Rxb7 {[%clk 0:00:37.7]}
26... Bg5 {[%clk 0:00:12.7]} 27. Nb4 {[%clk 0:00:35.2]} 27... Qa4 {[%clk
0:00:10.4]} 28. Nd5 {[%clk 0:00:34.9]} 28... Nc5 {[%clk 0:00:09.6]} 29. Rc7
{[%clk 0:00:30.5]} 29... Rac8 {[%clk 0:00:09.7]} 30. Rxc8 {[%clk 0:00:30.4]}
30... Rxc8 {[%clk 0:00:11.2]} 31. h4 {[%clk 0:00:31.8]} 31... Bd8 {[%clk
0:00:10.7]} 32. fxg6 {[%clk 0:00:31.6]} 32... hxg6 {[%clk 0:00:11]} 33. Bh3
{[%clk 0:00:33]} 33... Rb8 {[%clk 0:00:07.1]} 34. Bg2 {[%clk 0:00:25.6]} 34...
Ne3 {[%clk 0:00:07.1]} 35. Rc1 {[%clk 0:00:19.5]} 35... Nxg2 {[%clk 0:00:06.9]}
36. Kxg2 {[%clk 0:00:21.4]} 36... Qxe4+ {[%clk 0:00:08.1]} 37. Kg1 {[%clk
0:00:19.1]} 37... Qxd5 {[%clk 0:00:09.5]} 38. Qf2 {[%clk 0:00:18.2]} 38... Ne4
{[%clk 0:00:08.4]} 39. Qf3 {[%clk 0:00:14.1]} 39... Bb6+ {[%clk 0:00:09.8]} 40.
Kg2 {[%clk 0:00:14.5]} 40... Nxc3 {[%clk 0:00:08.3]} 41. Rxc3 {[%clk 0:00:13.8]}
41... Qxf3+ {[%clk 0:00:09.2]} 42. Rxf3 {[%clk 0:00:15.7]} 42... Bc5 {[%clk
0:00:10.7]} 43. Nc3 {[%clk 0:00:15.6]} 43... Bxa3 {[%clk 0:00:10.8]} 44. Nd5
{[%clk 0:00:16.6]} 44... Bc5 {[%clk 0:00:11.8]} 45. Nf6+ {[%clk 0:00:15.8]}
45... Kg7 {[%clk 0:00:12.7]} 46. Nd7 {[%clk 0:00:17.4]} 46... Rc8 {[%clk
0:00:13.6]} 47. g4 {[%clk 0:00:16.5]} 47... Ba7 {[%clk 0:00:10.9]} 48. g5 {[%clk
0:00:16.3]} 48... Rc2+ {[%clk 0:00:11.7]} 49. Kh3 {[%clk 0:00:17.3]} 49... b4
{[%clk 0:00:12]} 50. Rd3 {[%clk 0:00:14.1]} 50... Rc3 {[%clk 0:00:12.9]} 51.
Rxc3 {[%clk 0:00:11.7]} 51... bxc3 {[%clk 0:00:14.4]} 52. Nf6 {[%clk 0:00:13.3]}
52... c2 {[%clk 0:00:15.1]} 53. Nd5 {[%clk 0:00:14.9]} 53... c1=Q {[%clk
0:00:15.9]} 54. h5 {[%clk 0:00:15.3]} 54... Qxg5 {[%clk 0:00:15.2]} 55. h6+
{[%clk 0:00:16.4]} 55... Qxh6+ {[%clk 0:00:16]} 56. Kg4 {[%clk 0:00:17.6]} 56...
Qh5+ {[%clk 0:00:16.1]} 57. Kg3 {[%clk 0:00:18.7]} 57... Qg5+ {[%clk 0:00:16.2]}
58. Kf3 {[%clk 0:00:19.3]} 58... Qf5+ {[%clk 0:00:16]} 59. Ke2 {[%clk
0:00:19.6]} 59... Qe4+ {[%clk 0:00:16.1]} 60. Kf1 {[%clk 0:00:20.3]} 60... Qxd5
{[%clk 0:00:17.1]} 61. Ke2 {[%clk 0:00:21.2]} 61... Qb3 {[%clk 0:00:17.1]} 62.
Ke1 {[%clk 0:00:20.7]} 62... Qc2 {[%clk 0:00:16.3]} 63. Kf1 {[%clk 0:00:22]}
63... Qf2# {[%clk 0:00:17.3]} 0-1